bitfinex/quotes_BTCUSD_20240731
["timestamp","ask_amount","ask_price","bid_price","bid_amount"]
[1722389239835,0.01851702,66461.0,66460.0,0.0903]
[1722389240050,0.01985424,66461.0,66460.0,0.0903]
[1722389240470,0.01851702,66461.0,66460.0,0.0903]
[1722389240716,0.01971432,66461.0,66460.0,0.0903]
[1722389241043,0.01851702,66461.0,66460.0,0.0843]
[1722389241478,0.16898102,66461.0,66460.0,0.0893]
[1722389241680,0.16924166,66461.0,66460.0,0.0843]
[1722389242022,0.16924166,66461.0,66460.0,0.0833]
[1722389242428,0.16924166,66461.0,66460.0,0.0853]
[1722389242606,0.16924166,66461.0,66460.0,0.0903]
[1722389243023,0.150464,66461.0,66460.0,0.0903]
[1722389243246,0.16924249,66461.0,66460.0,0.0903]
[1722389243453,0.47017049,66461.0,66460.0,0.0903]
[1722389243805,0.16924249,66461.0,66460.0,0.0903]
[1722389244446,0.47017049,66461.0,66460.0,0.0903]
[1722389246059,0.16924249,66461.0,66460.0,0.0903]
[1722389246531,0.17044875,66461.0,66460.0,0.0903]
[1722389246731,0.28172541,66461.0,66460.0,0.0903]
[1722389247037,0.28172542,66461.0,66460.0,0.0903]
[1722389247411,0.16889455,66461.0,66460.0,0.0903]
[1722389248641,0.1690369,66461.0,66460.0,0.0903]
[1722389249546,0.1698669,66461.0,66460.0,0.0903]
[1722389249747,0.16984379,66461.0,66460.0,0.0903]
[1722389251332,0.16984379,66461.0,66460.0,0.1766]
[1722389251946,0.01937979,66461.0,66460.0,0.1766]
[1722389252201,0.01937979,66461.0,66460.0,0.690698]
[1722389253117,0.01951616,66461.0,66460.0,0.384766]
[1722389253294,0.01951616,66461.0,66460.0,0.391766]
[1722389253907,0.01951616,66461.0,66460.0,0.385766]
[1722389254315,0.01951616,66461.0,66460.0,0.393766]
[1722389255962,0.01951616,66461.0,66460.0,0.694698]
[1722389256539,0.00083,66461.0,66460.0,0.393766]
[1722389256741,0.00083,66461.0,66460.0,0.2433]
[1722389257468,0.02033194,66461.0,66460.0,0.2433]
[1722389257689,0.02033194,66461.0,66460.0,0.393766]
[1722389259454,0.02033194,66461.0,66460.0,0.157]
[1722389259785,0.02052904,66461.0,66460.0,0.1013]
[1722389259939,0.02208324,66461.0,66460.0,0.1013]
[1722389261044,0.02052904,66461.0,66460.0,0.1013]
[1722389261447,0.02052904,66461.0,66460.0,0.251766]
[1722389261946,0.02052904,66461.0,66460.0,0.392066]
[1722389262143,0.02052904,66461.0,66460.0,0.692998]
[1722389262762,0.02052904,66461.0,66460.0,0.392066]
[1722389266427,0.02024689,66461.0,66460.0,0.392066]
[1722389269945,0.02019856,66461.0,66460.0,0.392066]
[1722389271425,0.02159564,66461.0,66460.0,0.392066]
[1722389271777,0.02019856,66461.0,66460.0,0.392066]
[1722389272429,0.15583876,66461.0,66460.0,0.392066]
[1722389272542,0.02019856,66461.0,66460.0,0.392066]
[1722389272957,0.02104463,66461.0,66460.0,0.392066]
[1722389273155,0.02104463,66461.0,66460.0,0.392139]
[1722389273156,0.00083,66461.0,66460.0,0.392139]
[1722389273356,0.15583492,66461.0,66460.0,0.392139]
[1722389273569,0.15583492,66461.0,66460.0,0.693071]
[1722389275814,0.02015336,66461.0,66460.0,0.994003]
[1722389276570,0.00083,66461.0,66460.0,0.693071]
[1722389277179,0.02019184,66461.0,66460.0,0.693071]
[1722389279848,0.01975363,66461.0,66460.0,0.693071]
[1722389281061,0.01975363,66461.0,66460.0,0.994003]
[1722389281605,0.01975363,66461.0,66460.0,0.693071]
[1722389281962,0.01975363,66461.0,66460.0,0.299752]
[1722389282152,0.01975856,66461.0,66460.0,0.315452]
[1722389282373,0.01975856,66461.0,66460.0,0.628384]
[1722389283070,0.01975856,66461.0,66460.0,0.616384]
[1722389283481,0.01975856,66461.0,66460.0,0.628384]
[1722389284584,0.01975856,66461.0,66460.0,0.637384]
[1722389284775,0.01975856,66461.0,66460.0,0.628384]
[1722389284982,0.01975856,66461.0,66460.0,0.640384]
[1722389286037,0.0199709,66461.0,66460.0,0.640384]
[1722389287857,0.01997013,66461.0,66460.0,0.640384]
[1722389288042,0.01997008,66461.0,66460.0,0.640384]
[1722389288898,0.00083,66461.0,66460.0,0.640384]
[1722389289119,0.01997534,66461.0,66460.0,0.640384]
[1722389289483,0.02152954,66461.0,66460.0,0.640384]
[1722389289911,0.01997534,66461.0,66460.0,0.339452]
[1722389290160,0.02152954,66461.0,66460.0,0.339452]
[1722389290511,0.02152954,66461.0,66460.0,0.188986]
[1722389290711,0.02152954,66461.0,66460.0,0.024986]
[1722389290712,1.13567754,66461.0,66460.0,0.024986]
[1722389291070,0.83319534,66461.0,66460.0,0.024986]
[1722389291227,0.83474954,66461.0,66460.0,0.024986]
[1722389292278,0.83424394,66461.0,66460.0,0.024986]
[1722389292483,0.17148794,66461.0,66460.0,0.024986]
[1722389292616,0.47086174,66461.0,66460.0,0.024986]
[1722389293449,0.16993374,66461.0,66460.0,0.024986]
[1722389293650,0.47086174,66461.0,66460.0,0.024986]
[1722389294280,0.16993374,66461.0,66460.0,0.024986]
[1722389294487,0.47086174,66461.0,66460.0,0.024986]
[1722389295482,0.47124821,66461.0,66460.0,0.024986]
[1722389296446,0.60687394,66461.0,66460.0,0.02477337]
[1722389296574,0.90780194,66461.0,66460.0,0.02477337]
[1722389296775,0.53664821,66461.0,66460.0,0.02477337]
[1722389297612,0.517622,66461.0,66460.0,0.02477337]
[1722389297814,0.53654318,66461.0,66460.0,0.02477337]
[1722389298376,0.83747118,66461.0,66460.0,0.02477337]
[1722389298587,1.42800598,66461.0,66460.0,0.02477337]
[1722389298784,1.4090848,66461.0,66460.0,0.02477337]
[1722389298981,1.4830546,66461.0,66460.0,0.02477337]
[1722389299285,1.4830546,66461.0,66460.0,0.01277337]
[1722389299688,1.49209191,66461.0,66460.0,0.01277337]
[1722389299896,1.49209191,66461.0,66460.0,0.00077337]
[1722389300495,1.43709267,66461.0,66460.0,0.00077337]
[1722389301499,1.58958158,66461.0,66460.0,0.00077337]
[1722389301909,1.43709267,66461.0,66460.0,0.00077337]
[1722389302195,1.58958144,66461.0,66460.0,0.00077337]
[1722389303497,1.43709267,66461.0,66460.0,0.00077337]
[1722389304468,1.28929267,66461.0,66460.0,0.00077337]
[1722389305444,1.28927252,66461.0,66460.0,0.00077337]
[1722389305867,1.28880165,66461.0,66460.0,0.00077337]
[1722389306469,1.52360576,66461.0,66460.0,0.00077337]
[1722389307075,1.37120165,66461.0,66460.0,0.00077337]
[1722389307279,1.52360532,66461.0,66460.0,0.00077337]
[1722389307678,1.52358794,66461.0,66460.0,0.00077337]
[1722389308502,1.37120165,66461.0,66460.0,0.00077337]
[1722389308725,1.35272211,66461.0,66460.0,0.00077337]
[1722389308963,1.52413692,66461.0,66460.0,0.00077337]
[1722389309558,1.3717637,66461.0,66460.0,0.00077337]
[1722389312068,1.37206616,66461.0,66460.0,0.00077337]
[1722389314904,1.42741084,66461.0,66460.0,0.00077337]
[1722389315517,1.42739937,66461.0,66460.0,0.00077337]
[1722389315914,1.48784645,66461.0,66460.0,0.00077337]
[1722389316111,1.64016136,66461.0,66460.0,0.00077337]
[1722389317804,1.64014901,66461.0,66460.0,0.00077337]
[1722389318790,1.64006593,66461.0,66460.0,0.00077337]
[1722389319190,2.02729393,66461.0,66460.0,0.00077337]
[1722389319408,1.87499137,66461.0,66460.0,0.00077337]
[1722389319599,2.20591937,66461.0,66460.0,0.00077337]
[1722389319838,1.494738,66453.0,66451.0,0.009317]
[1722389319991,1.90535306,66453.0,66451.0,0.009317]
[1722389320396,1.36861526,66453.0,66451.0,0.009317]
[1722389320597,1.22821526,66453.0,66451.0,0.009317]
[1722389320798,0.87182615,66453.0,66451.0,0.092117]
[1722389321824,0.87054697,66453.0,66451.0,0.092117]
[1722389321986,1.00587697,66453.0,66451.0,0.092117]
[1722389322187,0.87054697,66453.0,66451.0,0.092117]
[1722389322388,1.00587697,66453.0,66451.0,0.092117]
[1722389322699,1.13655957,66453.0,66451.0,0.092117]
[1722389322906,1.00122957,66453.0,66451.0,0.092117]
[1722389323386,1.13955957,66453.0,66451.0,0.092117]
[1722389323753,1.00122957,66453.0,66451.0,0.092117]
[1722389324735,1.13655957,66453.0,66451.0,0.092117]
[1722389325115,1.43752357,66453.0,66451.0,0.009317]
[1722389325356,1.42021206,66453.0,66451.0,0.009317]
[1722389325762,1.4200685,66453.0,66451.0,0.009317]
[1722389326907,1.3477566,66453.0,66451.0,0.009317]
[1722389327105,1.35659413,66453.0,66451.0,0.009317]
[1722389327558,1.16238864,66453.0,66451.0,0.009317]
[1722389327750,1.16238864,66453.0,66452.0,0.14728942]
[1722389327751,1.31594123,66453.0,66452.0,0.14728942]
[1722389327901,1.18063934,66453.0,66452.0,0.14728942]
[1722389328102,1.31594865,66453.0,66452.0,0.14728942]
[1722389328532,1.18063934,66453.0,66452.0,0.14728942]
[1722389328733,1.31595633,66453.0,66452.0,0.14728942]
[1722389329713,1.18063934,66453.0,66452.0,0.14728942]
[1722389329939,0.87967534,66453.0,66452.0,0.14728942]
[1722389330333,1.01499624,66453.0,66452.0,0.14728942]
[1722389330529,0.12726534,66453.0,66452.0,0.14728942]
[1722389330710,0.2687327,66453.0,66452.0,0.14728942]
[1722389330909,0.0182507,66453.0,66452.0,0.14728942]
[1722389331136,0.47012208,66454.0,66453.0,0.1376]
[1722389331847,0.47005942,66454.0,66453.0,0.1376]
[1722389332422,0.47005942,66454.0,66453.0,0.1386]
[1722389333414,0.16909942,66454.0,66453.0,0.1386]
[1722389333773,0.16909942,66454.0,66453.0,0.1406]
[1722389334258,0.01861942,66454.0,66453.0,0.291082]
[1722389334455,0.13533149,66457.0,66454.0,0.1416]
[1722389334456,0.1,66456.0,66454.0,0.1416]
[1722389334665,0.1,66456.0,66453.0,0.003]
[1722389334666,0.1,66456.0,66455.0,0.1416]
[1722389334820,0.11929866,66456.0,66455.0,0.1416]
[1722389335021,0.13537724,66457.0,66456.0,0.292075]
[1722389335222,0.13537724,66457.0,66456.0,0.442551]
[1722389335223,0.01929863,66457.0,66456.0,0.442551]
[1722389335424,0.01929863,66457.0,66455.0,0.0863]
[1722389335425,0.1023842,66461.0,66455.0,0.0863]
[1722389335643,0.11281639,66458.0,66457.0,0.150473]
[1722389335840,0.13210713,66458.0,66457.0,0.150473]
[1722389336043,0.01929074,66458.0,66456.0,0.1416]
[1722389336247,0.28257751,66457.0,66456.0,0.1416]
[1722389336447,0.16976374,66457.0,66456.0,0.1416]
[1722389336646,0.01929074,66457.0,66456.0,0.1416]
[1722389337052,0.01929074,66458.0,66456.0,0.1416]
[1722389337699,0.001,66457.0,66456.0,0.1516]
[1722389337922,0.02029074,66457.0,66456.0,0.1516]
[1722389338351,0.09118875,66457.0,66456.0,0.1596]
[1722389338549,0.09118875,66457.0,66456.0,0.1516]
[1722389338911,0.09018875,66457.0,66456.0,0.1506]
[1722389339117,0.01931531,66457.0,66456.0,0.1506]
[1722389339346,0.01931531,66457.0,66456.0,0.1586]
[1722389339544,0.01931531,66457.0,66456.0,0.1575]
[1722389339886,0.1520232,66459.0,66457.0,0.0759]
[1722389340087,0.16979492,66458.0,66457.0,0.0759]
[1722389341080,0.16979492,66458.0,66457.0,0.0829]
[1722389341281,0.16979492,66458.0,66457.0,0.0759]
[1722389341480,0.01932492,66458.0,66457.0,0.0759]
[1722389341715,0.16979492,66458.0,66457.0,0.0839]
[1722389341848,0.01932492,66458.0,66457.0,0.0839]
[1722389342262,0.02085259,66458.0,66457.0,0.0839]
[1722389342486,0.02085259,66458.0,66457.0,0.1519]
[1722389342487,0.01932492,66458.0,66457.0,0.1519]
[1722389342692,0.0206927,66460.0,66459.0,0.061]
[1722389342848,0.0191726,66460.0,66459.0,0.1414]
[1722389343208,0.0207268,66460.0,66459.0,0.1414]
[1722389343611,0.1696386,66460.0,66459.0,0.1414]
[1722389344139,0.1696386,66460.0,66459.0,0.1464]
[1722389344350,0.150466,66460.0,66459.0,0.1464]
[1722389344502,0.1697017,66460.0,66459.0,0.1464]
[1722389346312,0.27147581,66460.0,66459.0,0.1464]
[1722389346519,0.27147581,66460.0,66459.0,0.1524]
[1722389346967,0.1697017,66460.0,66459.0,0.1524]
[1722389350738,0.01903519,66460.0,66459.0,0.1524]
[1722389351435,0.01993308,66460.0,66459.0,0.1524]
[1722389351836,0.01903519,66460.0,66459.0,0.1524]
[1722389352043,0.02058939,66460.0,66459.0,0.1524]
[1722389353694,0.17105539,66460.0,66459.0,0.1524]
[1722389353897,0.16936619,66460.0,66459.0,0.1524]
[1722389354096,0.27110124,66460.0,66459.0,0.1524]
[1722389354309,0.27110132,66460.0,66459.0,0.1524]
[1722389356519,0.57203332,66460.0,66459.0,0.1524]
[1722389357129,0.5720744,66460.0,66459.0,0.1524]
[1722389357333,0.2711424,66460.0,66459.0,0.1524]
[1722389358385,0.5720744,66460.0,66459.0,0.1524]
[1722389360631,0.57154116,66460.0,66459.0,0.1524]
[1722389363695,0.55313305,66460.0,66459.0,0.1524]
[1722389363856,0.57164167,66460.0,66459.0,0.1524]
[1722389364693,0.16897462,66460.0,66459.0,0.1524]
[1722389365118,0.01850862,66460.0,66459.0,0.1524]
[1722389365328,0.46990662,66460.0,66459.0,0.011]
[1722389365722,0.16897462,66460.0,66459.0,0.011]
[1722389366526,0.16897462,66460.0,66459.0,0.0875]
[1722389367076,0.16941918,66460.0,66459.0,0.0875]
[1722389368360,0.01895318,66460.0,66459.0,0.0875]
[1722389368560,0.01895318,66460.0,66459.0,0.1511]
[1722389369089,0.02050738,66460.0,66459.0,0.1511]
[1722389370373,0.0204736,66460.0,66459.0,0.1511]
[1722389370781,0.0189194,66460.0,66459.0,0.301568]
[1722389371594,0.0189194,66460.0,66459.0,0.1511]
[1722389371800,0.0189194,66460.0,66459.0,0.301568]
[1722389372530,0.0204736,66460.0,66459.0,0.1511]
[1722389373549,0.15611378,66460.0,66459.0,0.1511]
[1722389373765,0.15455958,66460.0,66459.0,0.602505]
[1722389373953,0.00083,66461.0,66460.0,0.0801]
[1722389374156,0.02152665,66461.0,66460.0,0.0801]
[1722389374443,0.01997245,66461.0,66460.0,0.0801]
[1722389375045,0.01997245,66461.0,66460.0,0.230566]
[1722389375287,0.01997245,66461.0,66460.0,0.0901]
[1722389376699,0.00083,66461.0,66460.0,0.0901]
[1722389376902,0.01989723,66461.0,66460.0,0.0901]
[1722389378117,0.02106245,66461.0,66460.0,0.0901]
[1722389378325,0.01989723,66461.0,66460.0,0.0901]
[1722389378644,0.02132979,66461.0,66460.0,0.0901]
[1722389379087,0.01989723,66461.0,66460.0,0.0901]
[1722389379303,0.0207449,66461.0,66460.0,0.0901]
[1722389379504,0.09333875,66461.0,66460.0,0.0901]
[1722389379640,0.02074023,66461.0,66460.0,0.0901]
[1722389380061,0.00083,66461.0,66460.0,0.0901]
[1722389380269,0.01894962,66461.0,66460.0,0.0901]
[1722389380467,0.17248495,66461.0,66460.0,0.0901]
[1722389380669,0.37502905,66461.0,66460.0,0.0901]
[1722389383010,0.27157758,66461.0,66460.0,0.0901]
[1722389383210,0.27277568,66461.0,66460.0,0.0901]
[1722389383411,0.27280321,66461.0,66460.0,0.0901]
[1722389383610,0.27160511,66461.0,66460.0,0.0901]
[1722389383842,0.10083,66461.0,66460.0,0.0901]
[1722389384050,0.27316075,66461.0,66460.0,0.0901]
[1722389384190,0.27160655,66461.0,66460.0,0.0901]
[1722389385111,0.52543418,66461.0,66460.0,0.0901]
[1722389385827,0.52544694,66461.0,66460.0,0.0901]
[1722389386229,0.42208331,66461.0,66460.0,0.0901]
[1722389386549,0.40397067,66461.0,66460.0,0.0901]
[1722389386750,0.42205565,66461.0,66460.0,0.0901]
[1722389387254,0.40397067,66461.0,66460.0,0.0901]
[1722389388256,0.251294,66461.0,66460.0,0.0901]
[1722389388488,0.26955618,66461.0,66460.0,0.0901]
[1722389388797,0.251294,66461.0,66460.0,0.0901]
[1722389389804,0.552222,66461.0,66460.0,0.0901]
[1722389390366,0.6386656,66461.0,66460.0,0.0901]
[1722389391359,0.552222,66461.0,66460.0,0.0901]
[1722389393920,1.154078,66461.0,66460.0,0.01]
[1722389394126,0.99325,66461.0,66460.0,0.01]
[1722389394298,1.294178,66461.0,66460.0,0.01]
[1722389395112,1.294178,66461.0,66460.0,0.004]
[1722389395712,1.44487232,66461.0,66460.0,0.004]
[1722389395927,1.44592929,66461.0,66460.0,0.004]
[1722389396126,1.44487232,66461.0,66460.0,0.004]
[1722389396587,0.89813,66460.0,66459.0,0.000913]
[1722389396716,1.44500914,66460.0,66459.0,0.000913]
[1722389396918,1.74594114,66460.0,66459.0,0.000913]
[1722389397703,1.44500914,66460.0,66459.0,0.000913]
[1722389397946,1.44500914,66460.0,66459.0,0.001913]
[1722389398346,1.37151078,66460.0,66459.0,0.001913]
[1722389399363,1.22571078,66460.0,66459.0,0.001913]
[1722389400386,0.56958832,66460.0,66459.0,0.001913]
[1722389400590,0.11819032,66460.0,66459.0,0.296381]
[1722389400791,0.01819032,66460.0,66459.0,0.145913]
[1722389401025,0.0015542,66460.0,66459.0,0.145913]
[1722389401229,0.13634309,66461.0,66459.0,0.145913]
[1722389401432,0.30420947,66460.0,66459.0,0.145913]
[1722389401635,0.52223217,66460.0,66459.0,0.145913]
[1722389401843,0.52223217,66460.0,66459.0,0.083313]
[1722389401844,0.77056369,66460.0,66459.0,0.083313]
[1722389402048,0.77056369,66460.0,66459.0,0.001913]
[1722389402258,1.31025,66460.0,66459.0,0.001913]
[1722389402466,1.40849001,66460.0,66459.0,0.001913]
[1722389402672,1.54038472,66460.0,66459.0,0.001913]
[1722389403295,1.3033904,66460.0,66459.0,0.000913]
[1722389404335,1.28472899,66460.0,66459.0,0.000913]
[1722389404534,1.30240297,66460.0,66459.0,0.000913]
[1722389404742,1.30240297,66460.0,66459.0,0.001913]
[1722389405105,1.2486373,66460.0,66459.0,0.001913]
[1722389405302,1.45330084,66460.0,66459.0,0.001913]
[1722389405524,1.45330075,66460.0,66459.0,0.001913]
[1722389405724,1.1709373,66460.0,66459.0,0.001913]
[1722389405943,1.02244604,66460.0,66459.0,0.001913]
[1722389406158,0.8700053,66460.0,66459.0,0.001913]
[1722389406444,0.8700053,66460.0,66459.0,0.066813]
[1722389406681,0.87107159,66460.0,66459.0,0.066813]
[1722389407167,0.8700053,66460.0,66459.0,0.066813]
[1722389407443,0.8700053,66460.0,66459.0,0.147413]
[1722389407444,0.1176753,66460.0,66459.0,0.147413]
[1722389407647,0.151294,66461.0,66459.0,0.22276016]
[1722389407821,0.01952555,66460.0,66459.0,0.22276016]
[1722389408032,0.15345669,66460.0,66459.0,0.22276016]
[1722389408235,0.15345669,66460.0,66459.0,0.147413]
[1722389408236,0.60485469,66460.0,66459.0,0.147413]
[1722389409091,1.12502824,66460.0,66459.0,0.001913]
[1722389409505,1.17881945,66460.0,66459.0,0.000913]
[1722389409918,1.12585824,66460.0,66459.0,0.000913]
[1722389410403,1.12592305,66460.0,66459.0,0.000913]
[1722389410609,1.07206335,66460.0,66459.0,0.000913]
[1722389410817,1.054092,66460.0,66459.0,0.001913]
[1722389411052,1.07183147,66460.0,66459.0,0.001913]
[1722389411474,1.07183214,66460.0,66459.0,0.001913]
[1722389412700,0.77090014,66460.0,66459.0,0.001913]
[1722389413110,0.46996814,66460.0,66459.0,0.064113]
[1722389413532,0.46996814,66460.0,66459.0,0.145513]
[1722389414164,0.4706852,66460.0,66459.0,0.145513]
[1722389414614,0.1697532,66460.0,66459.0,0.145513]
[1722389415516,0.4706852,66460.0,66459.0,0.145513]
[1722389415729,0.7716172,66460.0,66459.0,0.145513]
[1722389416127,0.4706852,66460.0,66459.0,0.145513]
[1722389416984,0.0192872,66460.0,66459.0,0.145513]
[1722389417516,0.01903299,66460.0,66459.0,0.145513]
[1722389417740,0.17035425,66460.0,66459.0,0.145513]
[1722389417963,0.30497947,66460.0,66459.0,0.145513]
[1722389418147,0.01987068,66460.0,66459.0,0.145513]
[1722389418316,0.01903299,66460.0,66459.0,0.145513]
[1722389418518,0.0200773,66460.0,66459.0,0.145513]
[1722389418731,0.01903299,66460.0,66459.0,0.145513]
[1722389419006,0.01903299,66460.0,66459.0,0.295981]
[1722389419212,0.01903299,66460.0,66459.0,0.596918]
[1722389419431,0.01903299,66460.0,66459.0,0.90086415]
[1722389419636,0.00083,66460.0,66459.0,0.90086415]
[1722389420261,0.00083,66460.0,66459.0,0.89986415]
[1722389420727,0.00083,66460.0,66459.0,0.91086415]
[1722389421429,0.00083,66460.0,66459.0,0.91986415]
[1722389421669,0.00083,66460.0,66459.0,0.615918]
[1722389421910,0.00083,66460.0,66459.0,0.907855]
[1722389422138,0.00083,66460.0,66459.0,0.919855]
[1722389422369,0.00083,66460.0,66459.0,0.908855]
[1722389422593,0.00083,66460.0,66459.0,0.922855]
[1722389424972,0.00083,66460.0,66459.0,0.621918]
[1722389428631,0.151296,66460.0,66459.0,0.170513]
[1722389429104,0.2828499,66460.0,66459.0,0.170513]
[1722389429303,0.2812957,66460.0,66459.0,0.170513]
[1722389430409,0.26408491,66460.0,66459.0,0.170513]
[1722389430613,0.58197098,66460.0,66459.0,0.170513]
[1722389430826,0.77011488,66460.0,66459.0,0.026913]
[1722389431032,0.85857068,66460.0,66459.0,0.026913]
[1722389431678,0.99517212,66460.0,66459.0,0.026913]
[1722389431886,0.99391718,66460.0,66459.0,0.026913]
[1722389432091,0.85857068,66460.0,66459.0,0.026913]
[1722389432294,0.86012488,66460.0,66459.0,0.026913]
[1722389432526,0.99547138,66460.0,66459.0,0.026913]
[1722389432748,0.99496444,66460.0,66459.0,0.026913]
[1722389432959,0.99342135,66460.0,66459.0,0.026913]
[1722389433175,1.29435335,66460.0,66459.0,0.026913]
[1722389433379,1.30199574,66460.0,66459.0,0.026913]
[1722389433594,1.43759835,66460.0,66459.0,0.026913]
[1722389434032,1.30223858,66460.0,66459.0,0.012913]
[1722389434463,1.30223858,66460.0,66459.0,0.003913]
[1722389434674,1.30223858,66460.0,66459.0,0.004913]
[1722389434883,1.43760396,66460.0,66459.0,0.001913]
[1722389435296,1.30223858,66460.0,66459.0,0.001913]
[1722389435705,1.30223858,66460.0,66459.0,0.004913]
[1722389436745,1.21378278,66460.0,66459.0,0.004913]
[1722389436949,1.21363912,66460.0,66459.0,0.004913]
[1722389440073,1.21367468,66460.0,66459.0,0.004913]
[1722389440496,1.197092,66460.0,66459.0,0.004913]
[1722389440708,1.21364476,66460.0,66459.0,0.004913]
[1722389440921,1.21364476,66460.0,66452.0,0.00248942]
[1722389440922,0.1431,66455.0,66452.0,0.00248942]
[1722389441138,1.282774,66453.0,66452.0,0.00248942]
[1722389441367,1.282774,66453.0,66440.0,0.19093711]
[1722389441368,0.150509,66441.0,66440.0,0.19093711]
[1722389441603,0.48164788,66441.0,66440.0,0.19093711]
[1722389441816,0.150509,66441.0,66440.0,0.19093711]
[1722389442026,0.18062874,66441.0,66440.0,0.27723711]
[1722389442240,0.78266474,66441.0,66440.0,0.27723711]
[1722389442448,0.78266474,66441.0,66440.0,0.19093711]
[1722389442449,0.79076832,66441.0,66440.0,0.19093711]
[1722389442653,0.90355295,66441.0,66440.0,0.19093711]
[1722389442863,1.20457095,66441.0,66440.0,0.05013711]
[1722389443275,1.09178743,66441.0,66440.0,0.05013711]
[1722389443451,1.20450661,66441.0,66440.0,0.05013711]
[1722389443863,1.20450661,66441.0,66440.0,0.05513711]
[1722389444095,1.28029178,66441.0,66440.0,0.05513711]
[1722389444297,1.28029178,66441.0,66440.0,0.05013711]
[1722389444724,1.28029178,66441.0,66440.0,0.06413711]
[1722389444725,1.28129178,66441.0,66440.0,0.06413711]
[1722389444928,1.28129178,66441.0,66440.0,0.06713711]
[1722389445437,1.09178743,66441.0,66440.0,0.05313711]
[1722389446568,1.09190149,66441.0,66440.0,0.05313711]
[1722389446980,1.09190149,66441.0,66440.0,0.05813711]
[1722389449441,1.20462067,66441.0,66440.0,0.05813711]
[1722389449654,1.21324187,66441.0,66440.0,0.05813711]
[1722389449957,1.21329483,66441.0,66440.0,0.05813711]
[1722389450158,1.17490338,66441.0,66440.0,0.05813711]
[1722389450366,1.32585905,66441.0,66440.0,0.05813711]
[1722389450993,1.39951311,66441.0,66440.0,0.05813711]
[1722389451390,1.70053111,66441.0,66440.0,0.05813711]
[1722389451827,1.70053111,66441.0,66440.0,0.05313711]
[1722389452029,1.70053111,66441.0,66440.0,0.05013711]
[1722389452399,1.83560925,66441.0,66440.0,0.05013711]
[1722389453044,1.70118806,66441.0,66440.0,0.05013711]
[1722389453246,1.83722713,66441.0,66440.0,0.05013711]
[1722389454236,1.83720124,66441.0,66440.0,0.05013711]
[1722389454536,1.77639354,66441.0,66440.0,0.05013711]
[1722389455118,1.91979354,66441.0,66440.0,0.05013711]
[1722389455557,2.22081154,66441.0,66440.0,0.05013711]
[1722389455758,2.3827708,66441.0,66440.0,1.1e-07]
[1722389455967,2.14509603,66441.0,66440.0,1.1e-07]
[1722389456172,2.53946573,66441.0,66440.0,1.1e-07]
[1722389456387,2.53789117,66441.0,66440.0,1.1e-07]
[1722389456797,2.53689117,66441.0,66440.0,1.1e-07]
[1722389457204,2.54589117,66441.0,66440.0,0.00100011]
[1722389458414,2.68066811,66441.0,66440.0,0.00100011]
[1722389459192,2.81036811,66441.0,66440.0,0.00100011]
[1722389459444,2.67559117,66441.0,66440.0,0.00100011]
[1722389459682,2.56840908,66441.0,66440.0,0.00200011]
[1722389459949,2.68005735,66441.0,66440.0,0.00200011]
[1722389460211,2.56840908,66441.0,66440.0,0.00200011]
[1722389460382,2.68006197,66441.0,66440.0,0.00200011]
[1722389461945,2.67731177,66441.0,66440.0,0.00200011]
[1722389463210,2.67731177,66441.0,66440.0,1.1e-07]
[1722389463411,2.67731177,66441.0,66426.0,0.00075271]
[1722389463413,1.665951,66427.0,66426.0,0.00075271]
[1722389463642,2.13241988,66427.0,66426.0,0.00075271]
[1722389463860,2.22908704,66427.0,66426.0,0.00075271]
[1722389464307,2.23908704,66427.0,66426.0,0.00075271]
[1722389464512,2.22908704,66427.0,66426.0,0.00075271]
[1722389464725,2.22908704,66427.0,66426.0,0.00175271]
[1722389464726,2.38178136,66427.0,66426.0,0.00175271]
[1722389464935,2.29031248,66427.0,66426.0,0.00175271]
[1722389465149,2.39816439,66427.0,66426.0,0.00175271]
[1722389465357,2.32863544,66427.0,66426.0,0.00275271]
[1722389465746,2.39042229,66427.0,66426.0,0.00275271]
[1722389465895,2.40042229,66427.0,66426.0,0.00275271]
[1722389466674,2.38942229,66427.0,66426.0,0.00075271]
[1722389467077,2.41742229,66427.0,66426.0,0.00175271]
[1722389467310,2.41742229,66427.0,66426.0,7.1e-07]
[1722389467311,2.41342229,66427.0,66426.0,7.1e-07]
[1722389467557,2.42342229,66427.0,66426.0,7.1e-07]
[1722389468002,2.42342229,66427.0,66417.0,0.009317]
[1722389468003,1.355053,66418.0,66417.0,0.009317]
[1722389468175,1.455053,66418.0,66417.0,0.009317]
[1722389468380,1.4918716,66418.0,66417.0,0.009317]
[1722389468581,1.9407946,66418.0,66417.0,0.009317]
[1722389468795,2.01303043,66418.0,66417.0,0.009317]
[1722389468992,2.14892982,66418.0,66417.0,0.009317]
[1722389470177,2.16092982,66418.0,66417.0,0.009317]
[1722389470817,2.17192982,66418.0,66417.0,0.009317]
[1722389471428,2.06287539,66418.0,66417.0,0.009317]
[1722389471633,2.17173344,66418.0,66417.0,0.009317]
[1722389472046,2.17173188,66418.0,66417.0,0.009317]
[1722389474092,2.17173188,66418.0,66407.0,0.0808]
[1722389474093,1.355256,66408.0,66407.0,0.0808]
[1722389474296,1.355256,66408.0,66405.0,0.0648]
[1722389474297,0.13700776,66408.0,66405.0,0.0648]
[1722389474497,0.752942,66406.0,66405.0,0.0648]
[1722389474699,1.455296,66406.0,66405.0,0.0648]
[1722389474854,1.64275878,66406.0,66405.0,0.0648]
[1722389475056,1.64275878,66406.0,66392.0,0.009317]
[1722389475057,0.301191,66403.0,66402.0,0.0773]
[1722389475262,0.58855446,66403.0,66402.0,0.0773]
[1722389475463,1.26486134,66403.0,66402.0,0.0773]
[1722389475674,1.26486134,66403.0,66399.0,0.0853282]
[1722389475675,0.451806,66400.0,66399.0,0.0853282]
[1722389475876,0.8900284,66400.0,66399.0,0.0853282]
[1722389476300,1.1912324,66400.0,66399.0,0.0853282]
[1722389476895,1.34192672,66400.0,66399.0,0.0853282]
[1722389477298,1.1912324,66400.0,66399.0,0.0853282]
[1722389478172,1.19168919,66400.0,66399.0,0.0853282]
[1722389479209,1.19168919,66400.0,66399.0,0.0060282]
[1722389479623,1.50289319,66400.0,66399.0,0.0060282]
[1722389480245,1.51389319,66400.0,66399.0,0.0060282]
[1722389480473,1.67458751,66400.0,66399.0,0.0060282]
[1722389480675,1.66358751,66400.0,66399.0,0.0060282]
[1722389480897,1.66458751,66400.0,66399.0,0.0060282]
[1722389481111,1.66458751,66400.0,66393.0,0.009317]